fUSD/lending_fUSD_20240205
["ID","MTS","AMOUNT","RATE_DAILY","PERIOD"]
[313291600,1707095460132,-500.0,0.0004,2]
[313291601,1707095460141,-198.1509308,0.0004,2]
[313291602,1707095460150,-500.0,0.0004,2]
[313291603,1707095460160,-1044.03,0.0004,2]
[313291604,1707095460171,-500.0,0.0004,2]
[313291605,1707095460180,-500.0,0.0004,2]
[313291606,1707095460192,-500.0,0.0004,2]
[313291607,1707095460202,-423.51025375,0.0004,2]
[313291608,1707095460212,-503.61994871,0.0004,2]
[313291609,1707095460222,-529.2135122,0.0004,2]
[313291610,1707095460232,-500.0,0.0004,2]
[313291611,1707095460242,-500.0,0.0004,2]
[313291612,1707095460252,-500.0,0.0004,2]
[313291613,1707095460262,-601.18233799,0.0004,2]
[313291614,1707095460272,-527.20190312,0.0004,2]
[313291615,1707095460281,-150.23336626,0.0004,2]
[313291616,1707095460291,-500.0,0.0004,2]
[313291617,1707095460300,-500.0,0.0004,2]
[313291618,1707095460309,-619.58984646,0.0004,2]
[313291619,1707095460318,-524.56753115,0.0004,2]
[313291620,1707095460328,-192.81711976,0.0004,2]
[313291621,1707095460337,-464.88471974,0.0004,2]
[313291622,1707095460346,-500.0,0.0004,2]
[313291623,1707095460355,-500.0,0.0004,2]
[313291624,1707095460364,-255.0,0.0004,12]
[313291625,1707095460373,-535.42285217,0.0004,2]
[313291626,1707095460383,-500.0,0.0004,2]
[313291627,1707095460392,-500.0,0.0004,2]
[313291628,1707095460401,-500.0,0.0004,2]
[313291629,1707095460410,-500.0,0.0004,2]
[313291630,1707095460420,-608.81,0.0004,2]
[313291631,1707095460428,-500.0,0.0004,2]
[313291632,1707095460439,-500.0,0.0004,2]
[313291633,1707095460448,-525.28933023,0.0004,2]
[313291634,1707095460456,-500.0,0.0004,2]
[313291635,1707095460465,-501.78931316,0.0004,2]
[313291636,1707095460474,-911.94,0.0004,7]
[313291637,1707095460483,-500.0,0.0004,2]
[313291638,1707095460492,-500.0,0.0004,2]
[313291639,1707095460501,-500.0,0.0004,2]
[313291640,1707095460510,-288.05050862,0.0004,2]
[313291641,1707095460520,-500.0,0.0004,2]
[313291642,1707095460529,-500.0,0.0004,2]
[313291643,1707095460538,-500.0,0.0004,2]
[313291644,1707095460547,-179.01606392,0.0004,2]
[313291645,1707095460556,-493.9830889,0.0004,2]
[313291646,1707095460565,-500.0,0.0004,2]
[313291647,1707095460574,-215.07,0.0004,2]
[313291648,1707095460583,-1072.12,0.0004,2]
[313291649,1707095460592,-500.0,0.0004,2]
[313291650,1707095460601,-500.0,0.0004,2]
[313291651,1707095460610,-500.0,0.0004,2]
[313291652,1707095460619,-386.60821889,0.0004,2]
[313291653,1707095460628,-587.25157816,0.0004,2]
[313291654,1707095460637,-500.0,0.0004,2]
[313291655,1707095460646,-500.0,0.0004,2]
[313291656,1707095460655,-395.05049923,0.0004,2]
[313291657,1707095460664,-150.0,0.0004,2]
[313291658,1707095460673,-360.49177327,0.0004,2]
[313291659,1707095460682,-173.26569214,0.0004,2]
[313291660,1707095460693,-947.41,0.0004,20]
[313291661,1707095460701,-500.0,0.0004,2]
[313291662,1707095460710,-241.29651037,0.0004,2]
[313291663,1707095460720,-500.0,0.0004,2]
[313291664,1707095460729,-500.0,0.0004,2]
[313291665,1707095460738,-500.0,0.0004,2]
[313291666,1707095460747,-184.54799457,0.0004,2]
[313291667,1707095460755,-500.0,0.0004,2]
[313291668,1707095460764,-504.7661639,0.0004,2]
[313291669,1707095460773,-255.0,0.0004,12]
[313291670,1707095460783,-222.22,0.0004,2]
[313291671,1707095460791,-500.0,0.0004,2]
[313291672,1707095460802,-645.15,0.0004,2]
[313291673,1707095460811,-1039.15,0.0004,2]
[313291674,1707095460820,-293.91314429,0.0004,2]
[313291675,1707095460830,-293.08830109,0.0004,2]
[313291676,1707095460839,-505.85393227,0.0004,2]
[313291677,1707095460848,-500.0,0.0004,2]
[313291678,1707095460857,-426.62929675,0.0004,2]
[313291679,1707095460866,-500.0,0.0004,10]
[313291680,1707095460875,-500.0,0.0004,2]
[313291681,1707095460884,-500.0,0.0004,2]
[313291682,1707095460893,-500.0,0.0004,2]
[313291683,1707095460902,-502.39184456,0.0004,2]
[313291684,1707095460911,-500.0,0.0004,2]
[313291685,1707095460920,-500.0,0.0004,2]
[313291686,1707095460930,-500.0,0.0004,2]
[313291687,1707095460939,-503.34541048,0.0004,2]
[313291688,1707095460948,-500.0,0.0004,2]
[313291689,1707095460957,-1171.17,0.0004,2]
[313291690,1707095460966,-500.0,0.0004,2]
[313291691,1707095460975,-457.25553636,0.0004,2]
[313291692,1707095460984,-883.87,0.0004,2]
[313291693,1707095460993,-500.0,0.0004,2]
[313291694,1707095461002,-206.59300419,0.0004,2]
[313291695,1707095461011,-828.79,0.0004,2]
[313291696,1707095461020,-400.0635496,0.0004,2]
[313291697,1707095461109,-255.0,0.0004,12]
[313291698,1707095461128,-500.0,0.0004,2]
[313291699,1707095461137,-500.0,0.0004,2]
[313291700,1707095461146,-623.3,0.0004,2]
[313291701,1707095461156,-544.41067328,0.0004,2]
[313291702,1707095461165,-500.0,0.0004,2]
[313291703,1707095461175,-500.0,0.0004,2]
[313291704,1707095461183,-536.86984798,0.0004,2]
[313291705,1707095461194,-500.0,0.0004,2]
[313291706,1707095461203,-3906.28,0.0004,2]
[313291707,1707095461212,-500.0,0.0004,2]
[313291708,1707095461221,-500.0,0.0004,2]
[313291709,1707095461230,-500.0,0.0004,2]
[313291710,1707095461239,-500.0,0.0004,2]
[313291711,1707095461249,-500.0,0.0004,2]
[313291712,1707095461258,-500.0,0.0004,2]
[313291713,1707095461267,-614.46442042,0.0004,2]
[313291714,1707095461277,-189.34467809,0.0004,2]
[313291715,1707095461286,-500.0,0.0004,2]
[313291716,1707095461295,-500.0,0.0004,2]
[313291717,1707095461304,-195.68439124,0.0004,2]
[313291718,1707095461313,-3442.61,0.0004,2]
[313291719,1707095461323,-500.0,0.0004,2]
[313291720,1707095461332,-500.0,0.0004,2]
[313291721,1707095461342,-500.0,0.0004,2]
[313291722,1707095461350,-500.0,0.0004,2]
[313291723,1707095461360,-500.0,0.0004,2]
[313291724,1707095461369,-500.0,0.0004,2]
[313291725,1707095461378,-500.0,0.0004,2]
[313291726,1707095461387,-500.0,0.0004,2]
[313291727,1707095461397,-500.0,0.0004,2]
[313291728,1707095461407,-500.0,0.0004,2]
[313291729,1707095461416,-500.0,0.0004,2]
[313291730,1707095461426,-500.0,0.0004,2]
[313291731,1707095461436,-500.0,0.0004,2]
[313291732,1707095461448,-500.0,0.0004,2]
[313291733,1707095461458,-151.42236031,0.0004,2]
[313291734,1707095461467,-500.0,0.0004,2]
[313291735,1707095461476,-1766.17,0.0004,5]
[313291736,1707095461485,-500.0,0.0004,2]
[313291737,1707095461495,-500.0,0.0004,2]
[313291738,1707095461504,-500.0,0.0004,2]
[313291739,1707095461513,-717.49,0.0004,2]
[313291740,1707095461523,-613.96247625,0.0004,2]
[313291741,1707095461532,-559.38984385,0.0004,2]
[313291742,1707095461541,-500.0,0.0004,2]
[313291743,1707095461550,-2896.55,0.0004,2]
[313291744,1707095461559,-500.0,0.0004,2]
[313291745,1707095461569,-500.0,0.0004,2]
[313291746,1707095461579,-500.0,0.0004,2]
[313291747,1707095461589,-500.0,0.0004,2]
[313291748,1707095461599,-500.0,0.0004,2]
[313291749,1707095461609,-1943.62,0.0004,2]
[313291750,1707095461618,-500.0,0.0004,2]
[313291751,1707095461628,-882.82,0.0004,2]
[313291752,1707095461637,-500.0,0.0004,2]
[313291753,1707095461646,-500.0,0.0004,2]
[313291754,1707095461655,-453.3453317,0.0004,2]
[313291755,1707095461664,-500.0,0.0004,2]
[313291756,1707095461673,-500.0,0.0004,2]
[313291757,1707095461682,-500.0,0.0004,2]
[313291758,1707095461694,-500.0,0.0004,2]
[313291759,1707095461704,-500.0,0.0004,2]
[313291760,1707095461713,-500.0,0.0004,2]
[313291761,1707095461722,-500.0,0.0004,2]
[313291762,1707095461731,-500.0,0.0004,2]
[313291763,1707095461740,-500.0,0.0004,2]
[313291764,1707095461750,-500.0,0.0004,2]
[313291765,1707095461759,-500.0,0.0004,2]
[313291766,1707095461768,-500.0,0.0004,2]
[313291767,1707095461778,-500.0,0.0004,2]
[313291768,1707095461787,-500.0,0.0004,2]
[313291769,1707095461796,-500.0,0.0004,2]
[313291770,1707095461805,-1000.0,0.0004,2]
[313291771,1707095461814,-500.0,0.0004,2]
[313291772,1707095461823,-500.0,0.0004,2]
[313291773,1707095461832,-633.54,0.0004,2]
[313291774,1707095461841,-2280.46,0.0004,2]
[313291775,1707095461850,-666.48,0.0004,2]
[313291776,1707095461859,-1000.0,0.0004,7]
[313291777,1707095461869,-500.0,0.0004,2]
[313291778,1707095461878,-500.0,0.0004,2]
[313291779,1707095461887,-787.28,0.0004,2]
[313291780,1707095461896,-1000.0,0.0004,7]
[313291781,1707095461906,-500.0,0.0004,2]
[313291782,1707095461915,-500.0,0.0004,2]
[313291783,1707095461924,-500.0,0.0004,2]
[313291784,1707095461934,-500.0,0.0004,2]
[313291785,1707095461944,-500.0,0.0004,2]
[313291786,1707095461953,-500.0,0.0004,2]
[313291787,1707095461962,-500.0,0.0004,2]
[313291788,1707095461971,-500.0,0.0004,2]
[313291789,1707095461980,-500.0,0.0004,2]
[313291790,1707095461990,-500.0,0.0004,2]
[313291791,1707095461999,-500.0,0.0004,2]
[313291792,1707095462009,-500.0,0.0004,2]
[313291793,1707095462018,-500.0,0.0004,2]
[313291794,1707095462027,-500.0,0.0004,2]
[313291795,1707095462037,-500.0,0.0004,2]
[313291796,1707095462046,-500.0,0.0004,2]
[313291797,1707095462055,-500.0,0.0004,2]
[313291798,1707095462064,-500.0,0.0004,2]
[313291799,1707095462076,-500.0,0.0004,2]
[313291800,1707095462087,-500.0,0.0004,2]
[313291801,1707095462097,-500.0,0.0004,2]
[313291802,1707095462106,-500.0,0.0004,2]
[313291803,1707095462116,-500.0,0.0004,2]
[313291804,1707095462125,-504.79228748,0.0004,2]
[313291805,1707095462134,-500.0,0.0004,2]
[313291806,1707095462144,-500.0,0.0004,2]
[313291807,1707095462153,-1162.55,0.0004,2]
[313291808,1707095462163,-500.0,0.0004,2]
[313291809,1707095462172,-500.0,0.0004,2]
[313291810,1707095462182,-2177.23,0.0004,5]
[313291811,1707095462192,-236.79249135,0.0004,2]
[313291812,1707095462201,-500.0,0.0004,2]
[313291813,1707095462210,-500.0,0.0004,2]
[313291814,1707095462220,-500.0,0.0004,2]
[313291815,1707095462230,-598.05,0.0004,2]
[313291816,1707095462240,-500.0,0.0004,2]
[313291817,1707095462250,-255.0,0.0004,12]
[313291818,1707095462260,-500.0,0.0004,2]
[313291819,1707095462270,-500.0,0.0004,2]
[313291820,1707095462280,-500.0,0.0004,2]
[313291821,1707095462289,-500.97,0.0004,2]
[313291822,1707095462299,-500.0,0.0004,2]
[313291823,1707095462308,-500.0,0.0004,2]
[313291824,1707095462318,-500.0,0.0004,2]
[313291825,1707095462327,-500.0,0.0004,2]
[313291826,1707095462337,-500.0,0.0004,2]
[313291827,1707095462346,-500.0,0.0004,2]
[313291828,1707095462356,-500.0,0.0004,2]
[313291829,1707095462365,-500.0,0.0004,2]
[313291830,1707095462375,-500.0,0.0004,2]
[313291831,1707095462384,-500.0,0.0004,2]
[313291832,1707095462394,-500.0,0.0004,2]
[313291833,1707095462403,-500.0,0.0004,2]
[313291834,1707095462413,-574.85863092,0.0004,2]
[313291835,1707095462422,-500.0,0.0004,2]
[313291836,1707095462432,-500.0,0.0004,2]
[313291837,1707095462442,-500.0,0.0004,2]
[313291838,1707095462452,-776.5,0.0004,2]
[313291839,1707095462461,-500.0,0.0004,2]
[313291840,1707095462471,-500.0,0.0004,2]
[313291841,1707095462480,-500.0,0.0004,2]
[313291842,1707095462489,-500.0,0.0004,2]
[313291843,1707095462499,-432.21857672,0.0004,2]
[313291844,1707095462508,-254.46374825,0.0004,2]
[313291845,1707095462517,-500.0,0.0004,2]
[313291846,1707095462527,-500.0,0.0004,2]
[313291847,1707095462536,-4917.73803466,0.00040057,13]
[313291848,1707095462545,-1829.54,0.0004009,5]
[313291849,1707095462554,-171.0205,0.00040198,10]
[313291850,1707095462563,-543.53435668,0.00040268,5]
[313291851,1707095462572,-150.0,0.00040375,2]
[313291852,1707095462581,-375.47,0.00040434,2]
[313291853,1707095462590,-171.0205,0.00040498,13]
[313291854,1707095462599,-5000.0,0.000405,35]
[313291855,1707095462608,-254.0,0.00040503,5]
[313291856,1707095462621,-311.08,0.00040548,2]
[313291857,1707095462630,-150.0,0.00040548,2]
[313291858,1707095462639,-311.16,0.00040548,2]
[313291859,1707095462649,-422.38,0.00040548,2]
[313291860,1707095462659,-354.25,0.00040548,2]
[313291861,1707095462668,-301.99,0.00040548,2]
[313291862,1707095462678,-300.0,0.00040548,2]
[313291863,1707095462687,-410.6,0.00040548,2]
[313291864,1707095462698,-303.5,0.00040548,2]
[313291865,1707095462707,-417.36,0.00040548,2]
[313291866,1707095462717,-152.04,0.00040548,2]
[313291867,1707095462726,-150.0,0.00040548,2]
[313291868,1707095462737,-410.6,0.00040548,2]
[313291869,1707095462747,-150.0,0.00040548,2]
[313291870,1707095462757,-417.36,0.00040548,2]
[313291871,1707095462767,-410.6,0.00040548,2]
[313291872,1707095462777,-417.36,0.00040548,2]
[313291873,1707095462786,-417.36,0.00040548,2]
[313291874,1707095462796,-410.6,0.00040548,2]
[313291875,1707095462805,-410.6,0.00040548,2]
[313291876,1707095462815,-417.36,0.00040548,2]
[313291877,1707095462824,-853.53,0.00040548,2]
[313291878,1707095462833,-410.6,0.00040548,2]
[313291879,1707095462842,-417.36,0.00040548,2]
[313291880,1707095462852,-417.36,0.00040548,2]
[313291881,1707095462862,-410.6,0.00040548,2]
[313291882,1707095462871,-263.98004912,0.00040553,32]
[313291883,1707095462881,-171.0205,0.00040798,14]
[313291884,1707095462992,-166.0,0.000408,7]
[313291885,1707095463001,-500.0,0.00040821,2]
[313291886,1707095463011,-1031.1,0.00040821,7]
[313291887,1707095463020,-500.0,0.00040821,2]
[313291888,1707095463029,-500.0,0.00040821,2]
[313291889,1707095463038,-448.82388906,0.00040821,2]
[313291890,1707095463048,-498.8502605,0.00040821,2]
[313291891,1707095463059,-500.0,0.00040821,2]
[313291892,1707095463071,-500.0,0.00040821,2]
[313291893,1707095463080,-500.0,0.00040821,2]
[313291894,1707095463090,-500.0,0.00040821,2]
[313291895,1707095463099,-553.67,0.00040821,2]
[313291896,1707095463109,-500.0,0.00040821,2]
[313291897,1707095463119,-500.0,0.00040821,2]
[313291898,1707095463128,-500.0,0.00040821,2]
[313291899,1707095463138,-500.0,0.00040821,2]
[313291900,1707095463148,-500.0,0.00040821,2]
[313291901,1707095463157,-511.93061988,0.00040821,2]
[313291902,1707095463167,-500.0,0.00040821,2]
[313291903,1707095463176,-500.0,0.00040821,2]
[313291904,1707095463186,-1044.03,0.00040821,2]
[313291905,1707095463197,-500.0,0.00040821,2]
[313291906,1707095463206,-500.0,0.00040821,2]
[313291907,1707095463214,-500.0,0.00040821,2]
[313291908,1707095463224,-382.67157053,0.00040821,2]
[313291909,1707095463233,-278.00985008,0.00040821,2]
[313291910,1707095463243,-646.55591272,0.00040821,2]
[313291911,1707095463252,-632.95956865,0.00040821,2]
[313291912,1707095463262,-500.0,0.00040821,2]
[313291913,1707095463271,-500.0,0.00040821,2]
[313291914,1707095463281,-500.0,0.00040821,2]
[313291915,1707095463290,-500.0,0.00040821,2]
[313291916,1707095463300,-500.0,0.00040821,2]
[313291917,1707095463309,-500.0,0.00040821,2]
[313291918,1707095463318,-531.92159729,0.00040821,2]
[313291919,1707095463327,-608.81,0.00040821,2]
[313291920,1707095463337,-313.63,0.00040821,2]
[313291921,1707095463346,-161.31471054,0.00040821,2]
[313291922,1707095463355,-500.0,0.00040821,2]
[313291923,1707095463364,-911.94,0.00040821,7]
[313291924,1707095463374,-500.0,0.00040821,2]
[313291925,1707095463383,-500.0,0.00040821,2]
[313291926,1707095463392,-314.65186178,0.00040821,2]
[313291927,1707095463402,-500.0,0.00040821,2]
[313291928,1707095463411,-500.0,0.00040821,2]
[313291929,1707095463421,-1072.12,0.00040821,2]
[313291930,1707095463430,-500.0,0.00040821,2]
[313291931,1707095463443,-500.0,0.00040821,2]
[313291932,1707095463454,-500.0,0.00040821,2]
[313291933,1707095463464,-500.0,0.00040821,2]
[313291934,1707095463475,-178.442618,0.00040821,2]
[313291935,1707095463486,-285.70492235,0.00040821,2]
[313291936,1707095463496,-947.41,0.00040821,20]
[313291937,1707095463506,-200.86158265,0.00040821,2]
[313291938,1707095463515,-500.0,0.00040821,2]
[313291939,1707095463525,-500.0,0.00040821,2]
[313291940,1707095463535,-570.509597,0.00040821,2]
[313291941,1707095463545,-423.36217976,0.00040821,2]
[313291942,1707095463555,-645.15,0.00040821,2]
[313291943,1707095463565,-1039.15,0.00040821,2]
[313291944,1707095463575,-180.17385124,0.00040821,2]
[313291945,1707095463584,-500.0,0.00040821,10]
[313291946,1707095463593,-356.4398149,0.00040821,2]
[313291947,1707095463603,-500.0,0.00040821,2]
[313291948,1707095463612,-500.0,0.00040821,2]
[313291949,1707095463621,-500.0,0.00040821,2]
[313291950,1707095463630,-500.0,0.00040821,2]
[313291951,1707095463639,-1171.17,0.00040821,2]
[313291952,1707095463649,-500.0,0.00040821,2]
[313291953,1707095463658,-883.87,0.00040821,2]
[313291954,1707095463667,-537.01398617,0.00040821,2]
[313291955,1707095463676,-828.79,0.00040821,2]
[313291956,1707095463685,-500.0,0.00040821,2]
[313291957,1707095463697,-500.0,0.00040821,2]
[313291958,1707095463707,-623.3,0.00040821,2]
[313291959,1707095463715,-500.0,0.00040821,2]
[313291960,1707095463724,-484.67412351,0.00040821,2]
[313291961,1707095463733,-500.0,0.00040821,2]
[313291962,1707095463742,-3906.28,0.00040821,2]
[313291963,1707095463752,-500.0,0.00040821,2]
[313291964,1707095463761,-500.0,0.00040821,2]
[313291965,1707095463770,-500.0,0.00040821,2]
[313291966,1707095463779,-500.0,0.00040821,2]
[313291967,1707095463788,-500.0,0.00040821,2]
[313291968,1707095463798,-500.0,0.00040821,2]
[313291969,1707095463808,-402.6331686,0.00040821,2]
[313291970,1707095463817,-500.0,0.00040821,2]
[313291971,1707095463827,-3442.61,0.00040821,2]
[313291972,1707095463837,-500.0,0.00040821,2]
[313291973,1707095463847,-500.0,0.00040821,2]
[313291974,1707095463858,-500.0,0.00040821,2]
[313291975,1707095463868,-500.0,0.00040821,2]
[313291976,1707095463878,-500.0,0.00040821,2]
[313291977,1707095463887,-500.0,0.00040821,2]
[313291978,1707095463897,-444.7294724,0.00040821,2]
[313291979,1707095463907,-500.0,0.00040821,2]
[313291980,1707095463916,-500.0,0.00040821,2]
[313291981,1707095463926,-390.76669897,0.00040821,2]
[313291982,1707095463935,-500.0,0.00040821,2]
[313291983,1707095463951,-500.0,0.00040821,2]
[313291984,1707095463961,-500.0,0.00040821,2]
[313291985,1707095463971,-531.81523575,0.00040821,2]
[313291986,1707095463980,-500.0,0.00040821,2]
[313291987,1707095463990,-1766.17,0.00040821,5]
[313291988,1707095463999,-500.0,0.00040821,2]
[313291989,1707095464009,-173.99,0.00040821,2]
[313291990,1707095464018,-466.1,0.00040821,2]
[313291991,1707095464027,-717.49,0.00040821,2]
[313291992,1707095464036,-2896.55,0.00040821,2]
[313291993,1707095464045,-500.0,0.00040821,2]
[313291994,1707095464055,-195.71533126,0.00040821,2]
[313291995,1707095464065,-500.0,0.00040821,2]
[313291996,1707095464076,-500.0,0.00040821,2]
[313291997,1707095464087,-1943.62,0.00040821,2]
[313291998,1707095464097,-882.82,0.00040821,2]
[313291999,1707095464107,-500.0,0.00040821,2]
[313292000,1707095464117,-500.0,0.00040821,2]
[313292001,1707095464127,-500.0,0.00040821,2]
[313292002,1707095464136,-500.0,0.00040821,2]
[313292003,1707095464146,-500.0,0.00040821,2]
[313292004,1707095464158,-500.0,0.00040821,2]
[313292005,1707095464167,-500.0,0.00040821,2]
[313292006,1707095464176,-500.0,0.00040821,2]
[313292007,1707095464185,-500.0,0.00040821,2]
[313292008,1707095464198,-500.0,0.00040821,2]
[313292009,1707095464207,-500.0,0.00040821,2]
[313292010,1707095464216,-500.0,0.00040821,2]
[313292011,1707095464226,-500.0,0.00040821,2]
[313292012,1707095464235,-500.0,0.00040821,2]
[313292013,1707095464245,-500.0,0.00040821,2]
[313292014,1707095464255,-346.67763548,0.00040821,2]
[313292015,1707095464265,-580.99177693,0.00040821,2]
[313292016,1707095464274,-500.0,0.00040821,2]
[313292017,1707095464283,-633.54,0.00040821,2]
[313292018,1707095464293,-2280.46,0.00040821,2]
[313292019,1707095464302,-666.48,0.00040821,2]
[313292020,1707095464311,-1000.0,0.00040821,7]
[313292021,1707095464320,-320.14918885,0.00040821,2]
[313292022,1707095464330,-500.0,0.00040821,2]
[313292023,1707095464340,-787.28,0.00040821,2]
[313292024,1707095464350,-1000.0,0.00040821,7]
[313292025,1707095464359,-500.0,0.00040821,2]
[313292026,1707095464368,-500.0,0.00040821,2]
[313292027,1707095464377,-500.0,0.00040821,2]
[313292028,1707095464386,-500.0,0.00040821,2]
[313292029,1707095464395,-500.0,0.00040821,2]
[313292030,1707095464405,-500.0,0.00040821,2]
[313292031,1707095464415,-500.0,0.00040821,2]
[313292032,1707095464424,-500.0,0.00040821,2]
[313292033,1707095464433,-500.0,0.00040821,2]
[313292034,1707095464443,-473.84542093,0.00040821,2]
[313292035,1707095464454,-500.0,0.00040821,2]
[313292036,1707095464463,-500.0,0.00040821,2]
[313292037,1707095464473,-500.0,0.00040821,2]
[313292038,1707095464482,-500.0,0.00040821,2]
[313292039,1707095464492,-500.0,0.00040821,2]
[313292040,1707095464501,-500.0,0.00040821,2]
[313292041,1707095464510,-500.0,0.00040821,2]
[313292042,1707095464519,-604.40862306,0.00040821,2]
[313292043,1707095464529,-500.0,0.00040821,2]
[313292044,1707095464538,-500.0,0.00040821,2]
[313292045,1707095464547,-500.0,0.00040821,2]
[313292046,1707095464557,-553.93668549,0.00040821,2]
[313292047,1707095464566,-500.0,0.00040821,2]
[313292048,1707095464575,-500.0,0.00040821,2]
[313292049,1707095464584,-1162.55,0.00040821,2]
[313292050,1707095464593,-500.0,0.00040821,2]
[313292051,1707095464603,-389.28233402,0.00040821,2]
[313292052,1707095464613,-2177.23,0.00040821,5]
[313292053,1707095464622,-282.19757432,0.00040821,2]
[313292054,1707095464632,-500.0,0.00040821,2]
[313292055,1707095464641,-500.0,0.00040821,2]
[313292056,1707095464736,-598.05,0.00040821,2]
[313292057,1707095464746,-500.0,0.00040821,2]
[313292058,1707095464756,-500.0,0.00040821,2]
[313292059,1707095464766,-335.63591089,0.00040821,2]
[313292060,1707095464775,-500.97,0.00040821,2]
[313292061,1707095464784,-158.24109688,0.00040821,2]
[313292062,1707095464793,-307.07350354,0.00040821,2]
[313292063,1707095464802,-500.0,0.00040821,2]
[313292064,1707095464811,-500.0,0.00040821,2]
[313292065,1707095464820,-500.0,0.00040821,2]
[313292066,1707095464830,-500.65730128,0.00040821,2]
[313292067,1707095464839,-500.0,0.00040821,2]
[313292068,1707095464848,-436.4395803,0.00040821,2]
[313292069,1707095464857,-500.0,0.00040821,2]
[313292070,1707095464867,-500.40541227,0.00040821,2]
[313292071,1707095464875,-500.0,0.00040821,2]
[313292072,1707095464884,-500.0,0.00040821,2]
[313292073,1707095464893,-500.0,0.00040821,2]
[313292074,1707095464902,-500.0,0.00040821,2]
[313292075,1707095464911,-500.0,0.00040821,2]
[313292076,1707095464920,-500.0,0.00040821,2]
[313292077,1707095464929,-776.5,0.00040821,2]
[313292078,1707095464938,-500.0,0.00040821,2]
[313292079,1707095464949,-500.0,0.00040821,2]
[313292080,1707095464958,-500.0,0.00040821,2]
[313292081,1707095464968,-500.0,0.00040821,2]
[313292082,1707095464977,-500.0,0.00040821,2]
[313292083,1707095464986,-325.32093159,0.000409,120]
[313292084,1707095464995,-933.8156262,0.000409,2]
[313292085,1707095465004,-150.0,0.000409,16]
[313292086,1707095465014,-10000.0,0.00041,2]
[313292087,1707095465023,-1650.0,0.00041,3]
[313292088,1707095465032,-700.0,0.0004107,3]
[313292089,1707095465041,-1000.0,0.00041095,120]
[313292090,1707095465050,-803.85,0.00041095,30]
[313292091,1707095465061,-803.85,0.00041095,30]
[313292092,1707095465072,-803.85,0.00041095,30]
[313292093,1707095465081,-803.85,0.00041095,30]
[313292094,1707095465090,-500.0,0.00041095,2]
[313292095,1707095465099,-500.0,0.00041095,2]
[313292096,1707095465108,-500.0,0.00041095,2]
[313292097,1707095465117,-1000.0,0.00041095,30]
[313292098,1707095465126,-1000.0,0.00041095,30]
[313292099,1707095465135,-1000.0,0.00041095,30]